Cogmind - Beta 14 @@@ ROGUE MODE // 2024.11.23 @ 13:26:19 Player: WazdakkaGutsmek Result: Self-destructed Performance ------------- Evolutions (2) 1000 Regions Visited (3) 600 Robots Destroyed (37) 185 Value Destroyed (1182) 1182 Prototype IDs (11) 220 Alien Tech Used (0) 0 Bonus (0) 0 TOTAL SCORE: 3187 Bonus ------- None Cogmind --------- Core Integrity 204/550 Matter 31/300 Energy 170/170 System Corruption 0% Temperature Critical (642) Movement Core (350) Ox6 Location -8/Materials Parts ------- > --- POWER (1) -------- Makeshift Power Source > --- PROPULSION (4+3) - Aluminum Leg Arachnoskeleton > --- UTILITY (4) ------ Insulated Plating > --- WEAPON (2) ------- Flak Cannon Flak Cannon > --- INVENTORY (5) ---- Insulated Plating Insulated Plating Flak Cannon Flak Cannon Flak Cannon Peak State ------------ > --- POWER ------------ Makeshift Power Source > --- PROPULSION ------- Aluminum Leg Arachnoskeleton > --- UTILITY ---------- Insulated Plating Insulated Plating Insulated Plating Insulated Plating > --- WEAPON ----------- Flak Cannon Flak Cannon > --- INVENTORY -------- Flak Cannon Flak Cannon Flak Cannon [Rating: 44] Favorites ----------- Power Ion Engine Engine Ion Engine Propulsion Light Treads Treads Light Treads Leg Arachnoskeleton Utility Medium Storage Unit Storage Medium Storage Unit Protection Medium Armor Plating Weapon Improved Light Cannon Energy Gun EM Pulse Gun Ballistic Cannon Improved Light Cannon Launcher Grenade Launcher Build | -11 -10 -10 -8 ------- Run | Yrd Mat Sub Mat Slots Evolved 4 | . . . 4 Power . | . . . . Propulsion 2 | . . . 2 Utility 2 | . . . 2 Weapon . | . . . . Parts Attached 36 | . 10 14 12 Power 3 | . 1 1 1 Engine 3 | . 1 1 1 Core . | . . . . Reactor . | . . . . Propulsion 6 | . 2 2 2 Treads 4 | . 2 2 . Leg 2 | . . . 2 Wheel . | . . . . Hover . | . . . . Flight . | . . . . Utility 13 | . 4 5 4 Device . | . . . . Storage 1 | . 1 . . Processor . | . . . . Hackware . | . . . . Protection 12 | . 3 5 4 Artifact . | . . . . Weapon 14 | . 3 6 5 Energy Gun 3 | . 1 1 1 Energy Cannon . | . . . . Ballistic Gun . | . . . . Ballistic Cannon 8 | . 1 3 4 Launcher 3 | . 1 2 . Special Weapon . | . . . . Impact Weapon . | . . . . Slashing Weapon . | . . . . Piercing Weapon . | . . . . Special Melee Weapon . | . . . . Unidentified Prototypes . | . . . . Parts Lost 8 | . 1 4 3 Power 2 | . 1 1 . Propulsion 1 | . . 1 . Utility 3 | . . 1 2 Weapon 2 | . . 1 1 Highest Loss Streak 3 | . 1 3 2 To Critical Strikes . | . . . . Average Slot Usage (%) 89 | . 99 92 38 Engine 13 | . 13 14 7 Treads 24 | . 27 26 . Leg 1 | . . . 11 Storage 8 | . 14 7 . Protection 13 | . 13 13 5 Energy Gun 7 | . 24 . 2 Ballistic Cannon 17 | . 3 24 11 Launcher 2 | . . 3 . Peak Build Rating 44 | . 10 13 44 Average Rating 11 | . 7 11 31 On Entrance 8 | 6 6 10 13 Naked Turns . | . . . . Heaviest Build 31 | 12 28 31 31 Greatest Support 60 | 20 40 40 60 Greatest Overweight (x) 1 | . . 1 . Average Overweight (x) . | . . . . Largest Inventory Capacity 10 | . 10 10 5 Average Capacity 8 | . 9 7 5 Most Carried 10 | . 10 10 5 Average Carried 7 | . 8 7 2 Final Capacity 10 | 8 10 5 5 Final Carried 10 | 6 10 5 5 Class Distribution -------------------- 100% | Mutant Dominant Class ---------------- Mutant | -10/Materials Mutant | -10/Subcaves Mutant | -8/Materials Resources | -11 -10 -10 -8 ----------- Run | Yrd Mat Sub Mat Matter Collected 1012 | 182 160 494 176 Remotely . | . . . . Salvage Created 1020 | . 462 296 262 Parts 63 | . 23 26 14 Haulers Intercepted 1 | . 1 . . Recyclers Shooed 1 | . 1 . . Parts Field Recycled . | . . . . Retrieved Matter . | . . . . Parts Self-Destructed 11 | . . 11 . Prevented . | . . . . Kills | -11 -10 -10 -8 ------- Run | Yrd Mat Sub Mat Combat Hostiles Destroyed 29 | . 6 15 8 Guns 4 | . 2 . 2 Cannons 14 | . . 8 6 AOE 11 | . 4 7 . Classes Destroyed 13 | . 6 3 4 Worker 1 | . 1 . . Builder 1 | . 1 . . Hauler 1 | . 1 . . Recycler 1 | . 1 . . Operator 1 | . . . 1 Watcher 3 | . 3 . . Swarmer 5 | . . 5 . Grunt 11 | . 6 . 5 Brawler 1 | . . . 1 Sentry 1 | . . . 1 Hunter 1 | . . . 1 Artisan 1 | . . 1 . Subdweller 10 | . . 10 . Best Kill Streak 7 | . 7 4 4 Combat Bots Only 4 | . 4 4 4 Max Kills in Single Turn 2 | . 2 2 1 Gunslinging . | . . . . Exploded 2 | . 1 2 . Melee . | . . . . Uniques/NPCs Destroyed . | . . . . Combat | -11 -10 -10 -8 -------- Run | Yrd Mat Sub Mat Hostile Shots Fired 161 | . 21 66 74 Missed 45 | . 5 26 14 Damage Taken 2358 | . 242 961 1155 Core 497 | . 13 138 346 Absorbed by Shields . | . . . . Core Remaining (%) 69 | 100 . 39 . Volleys Fired 117 | . 28 47 42 Largest 2 | . 2 2 2 Hottest 99 | . 80 80 99 Shots Fired 219 | . 54 88 77 Gun 63 | . 49 2 12 Cannon 145 | . . 80 65 Launcher 11 | . 5 6 . Special . | . . . . Kinetic 145 | . . 80 65 Thermal 12 | . . . 12 Explosive 11 | . 5 6 . Electromagnetic 51 | . 49 2 . Robot Hit Streak 13 | . 6 13 8 Robot Miss Streak 10 | . 4 3 10 Penetration Max . | . . . . Secondary Targets . | . . . . Shots Hit Robots 130 | . 24 52 54 Core Hits 77 | . 23 27 27 Critical Kills . | . . . . Critical Parts Destroyed 1 | . . . 1 Critical Strikes 4 | . . 3 1 Destroy 1 | . . . 1 Blast 3 | . . 3 . Melee Attacks . | . . . . Impact . | . . . . Slashing . | . . . . Piercing . | . . . . Sneak Attacks . | . . . . Combat Hostiles . | . . . . Follow-up Attacks . | . . . . Damage Inflicted 3268 | . 978 1345 945 Guns 686 | . 464 30 192 Cannons 1712 | . . 959 753 Explosions 858 | . 502 356 . Melee . | . . . . Ramming 12 | . 12 . . Kinetic 1712 | . . 959 753 Thermal 428 | . 236 . 192 Explosive 622 | . 266 356 . Electromagnetic 494 | . 464 30 . Impact . | . . . . Slashing . | . . . . Piercing . | . . . . Highest Corruption . | . . . . Average Corruption . | . . . . Corruption Purged . | . . . . Corruption Blocked . | . . . . Overload Shots . | . . . . Overflow Damage 42 | . 42 . . Projectiles . | . . . . Explosions 42 | . 42 . . Melee . | . . . . Knockbacks 17 | . . 10 7 Impact . | . . . . Kinetic 17 | . . 10 7 Secondary . | . . . . Self-Inflicted Damage 40 | . . 40 . Shots 2 | . . 2 . Rammed 3 | . 3 . . Targets Rammed 3 | . 3 . . Kicked . | . . . . Crushed . | . . . . Highest Temperature 708 | . 180 1 708 Average Temperature 143 | . 52 1 209 Received Heat Transfer 690 | . 147 120 423 Effects 19 | . . . 19 Shutdowns 4 | . . . 4 Energy Bleed 1 | . . . 1 Interference 3 | . . . 3 Matter Decay 2 | . . . 2 Short Circuit 2 | . . . 2 Damage (major) 3 | . . . 3 Damage (core) 4 | . . . 4 Siege Activations . | . . . . Robots Corrupted . | . . . . Combat Hostiles . | . . . . Parts Fried . | . . . . Impact Corruptions . | . . . . Robots Melted . | . . . . Combat Hostiles . | . . . . Parts Melted . | . . . . Heat Transferred 475 | . 250 . 225 Parts Sabotaged . | . . . . Parts Stolen . | . . . . Parts Stripped . | . . . . Power Chain Reactions 5 | . 5 . . Alert | -11 -10 -10 -8 ------- Run | Yrd Mat Sub Mat Peak Influence 279 | . 239 . 279 Initial . | . . . . Average 103 | . 95 . 128 Maximum Alert Level 1 | . 1 . 1 Low Security (%) 81 | . 80 . 85 Level 1 18 | . 19 . 14 Level 2 . | . . . . Level 3 . | . . . . Level 4 . | . . . . Level 5 . | . . . . High Security . | . . . . Max Security . | . . . . Squads Dispatched 2 | . . . 2 Investigation . | . . . . Extermination . | . . . . Reinforcement 2 | . . . 2 Assault . | . . . . Garrison . | . . . . Intercept . | . . . . Searches Triggered . | . . . . Construction Impeded 1 | . . . 1 Haulers Reinforced . | . . . . Active Scanning Responses . | . . . . Cargo Convoy Interrupts . | . . . . Stealth | -11 -10 -10 -8 --------- Run | Yrd Mat Sub Mat Distress Signals 3 | . 3 . . Communications Jammed . | . . . . Distress Signals . | . . . . Times Spotted 48 | . 20 15 13 Peak Tracking Total 6 | . 4 6 3 Tactical Retreats 7 | . 4 2 1 Traps | -11 -10 -10 -8 ------- Run | Yrd Mat Sub Mat Traps Triggered 3 | . 1 2 . Indirectly . | . . . . Trap Hack Attempts . | . . . . Triggered . | . . . . Disarmed . | . . . . Reprogrammed . | . . . . Reused . | . . . . Traps Extracted . | . . . . Installed . | . . . . Triggered . | . . . . Machines | -11 -10 -10 -8 ---------- Run | Yrd Mat Sub Mat Machines Disabled 5 | . 2 1 2 Max in Single Turn 2 | . 2 1 1 Machines Repaired . | . . . . Machines Dismantled . | . . . . Machines Sabotaged . | . . . . Overloaded Fab Kills . | . . . . Hacking | -11 -10 -10 -8 --------- Run | Yrd Mat Sub Mat Machines Accessed 9 | . 6 1 2 Terminals 8 | . 6 . 2 Fabricators . | . . . . Repair Stations . | . . . . Recycling Units . | . . . . Scanalyzers . | . . . . Garrison Access . | . . . . Total Hacks 32 | . 17 9 6 Successful 19 | . 8 9 2 Failed 13 | . 9 . 4 Catastrophic 1 | . . . 1 Database Lockouts . | . . . . Manual 22 | . 16 . 6 Terminals 23 | . 17 . 6 Fabricators . | . . . . Repair Stations . | . . . . Recycling Units . | . . . . Scanalyzers . | . . . . Garrison Access . | . . . . Terminal Hacks 11 | . 2 9 . Record 8 | . . 8 . Terminal Index 1 | . 1 . . Locate Traps 1 | . 1 . . Derelict Proto ID Bank 1 | . . 1 . Fabricator Hacks . | . . . . Repair Station Hacks . | . . . . Recycling Unit Hacks . | . . . . Scanalyzer . | . . . . Garrison Access Hacks . | . . . . Unauthorized Hacks 8 | . 6 . 2 Terminals 8 | . 6 . 2 Botnet 2 | . 1 . 1 Skim 6 | . 5 . 1 Fabricators . | . . . . Repair Stations . | . . . . Recycling Units . | . . . . Scanalyzers . | . . . . Garrison Access . | . . . . Data Cores Recovered 1 | . . . 1 Used . | . . . . Hacking Detections 6 | . 4 . 2 Full Trace Events . | . . . . Feedback Events . | . . . . Feedback Blocked . | . . . . Robot Schematics Acquired . | . . . . Robots Built . | . . . . Authchips . | . . . . Time . | . . . . Total Robot Build Rating . | . . . . Part Schematics Acquired . | . . . . Parts Built . | . . . . Authchips . | . . . . Time . | . . . . Total Part Build Rating . | . . . . Parts Repaired . | . . . . Time . | . . . . Parts Recycled . | . . . . Recycled Matter . | . . . . Retrieved Matter . | . . . . Retrieved Components . | . . . . Parts Scanalyzed . | . . . . Part Schematics Acquired . | . . . . Parts Damaged . | . . . . Bothacking | -11 -10 -10 -8 ------------ Run | Yrd Mat Sub Mat Used RIF Installer . | . . . . Robots Hacked . | . . . . Non-combat . | . . . . Combat . | . . . . Robot Hacks Applied . | . . . . Relay Couplers Released . | . . . . Fabnet Peak Effective % . | . . . . Robots Rewired . | . . . . Allies Hacked . | . . . . Hacks Repelled . | . . . . Allies | -11 -10 -10 -8 -------- Run | Yrd Mat Sub Mat Total Allies . | . . . . Largest Group . | . . . . Highest-Rated Group . | . . . . Highest-Rated Ally . | . . . . Total Orders . | . . . . Ally Attacks . | . . . . Total Damage . | . . . . Kills . | . . . . Allies Corrupted . | . . . . Allies Melted . | . . . . Intel | -11 -10 -10 -8 ------- Run | Yrd Mat Sub Mat Robot Analysis Total . | . . . . Derelict Logs Recovered 1 | . . 1 . Drone Launches . | . . . . Drone Recoveries . | . . . . Exploration | -11 -10 -10 -8 ------------- Run | Yrd Mat Sub Mat Turns Passed 3972 | . 1076 2555 341 Spaces Moved 2145 | 1 555 1437 152 Core . | . . . . Treads 1988 | . 551 1437 . Legs 157 | 1 4 . 152 Wheels . | . . . . Hover . | . . . . Flight . | . . . . Fastest Speed 90 | 120 120 160 90 Average Speed 159 | 120 159 164 102 Slowest Speed 240 | 120 160 240 105 Overloaded Moves . | . . . . Propulsion Burnouts . | . . . . Robots Hopped . | . . . . Cave-ins Triggered . | . . . . Exploration Rate (%) 39 | 2 67 75 13 Regions Visited 3 Branch Regions 1 Pre-discovered Areas 1 | . 1 . . Known Exits Taken 1 | . 1 . . Unknown Exits Taken 2 | 1 . 1 . Scrap Searched 11 | . . 11 . Spaces Dug 1 | . . . 1 Terrain Destroyed 72 | . 46 22 4 Melee . | . . . . Projectile 4 | . . . 4 AOE 68 | . 46 22 . Terrain Rammed . | . . . . Walls Destroyed . | . . . . Machines Disabled . | . . . . Actions | -11 -10 -10 -8 --------- Run | Yrd Mat Sub Mat Total 2494 | . 696 1538 260 Wait 122 | . 74 6 42 Move 2142 | . 554 1436 152 Hop . | . . . . Pick Up 30 | . 14 12 4 Fast Attach 10 | . 1 3 6 Attach 14 | . 5 5 4 Detach 4 | . 2 . 2 Swap 12 | . 4 6 2 Drop 36 | . 11 19 6 Fire 117 | . 28 47 42 Melee . | . . . . Ram . | . . . . Kick . | . . . . Crush 3 | . 3 . . Escape Stasis . | . . . . Rewire . | . . . . Trap . | . . . . Miscellaneous 4 | . . 4 . Route ------- -11/Scrapyard -10/Materials (discovered 6 exits: *Mat x3 / [*Min x2] / *Sub) -10/Subcaves -8/Materials History --------- Turn | Location | Event 1 | -11/Scrapyard | Discovered new exit (range 0) 1 | -11/Scrapyard | Entered Materials 188 | -10/Materials | Discovered new exit (range 11) 253 | -10/Materials | Discovered new exit (range 14) 257 | -10/Materials | Loaded intel: 10 trap records 298 | -10/Materials | Learned Materials trap positions 311 | -10/Materials | Build established: Mutant 321 | -10/Materials | Discovered new exit (range 8) 352 | -10/Materials | Identified exit to Subcaves 366 | -10/Materials | Learned 2 Mines zone layouts 369 | -10/Materials | Identified exit to Materials 376 | -10/Materials | Learned Storage garrison access intel 391 | -10/Materials | Learned Storage stockpile data 415 | -10/Materials | Loaded intel: 30 non-interactive machine locations 1077 | -10/Materials | Entered Subcaves 1349 | -10/Subcaves | Shifting Twisted Machinery released Sub. Shrapnel Launcher 1613 | -10/Subcaves | Shifting Twisted Machinery released Battle Rifle 1780 | -10/Subcaves | Disturbed a concealed Subdweller 2226 | -10/Subcaves | Core integrity fell below 50% 2254 | -10/Subcaves | Lost 3 parts (1n1u1w) 2754 | -10/Subcaves | Shifting Twisted Machinery released Shrapnel Trap 2767 | -10/Subcaves | Shifting Twisted Machinery released Sub. Laser 2814 | -10/Subcaves | Shifting Twisted Machinery released Sub. Monowheel 2886 | -10/Subcaves | Shifting Twisted Machinery released Mak. Hammer 2888 | -10/Subcaves | A swath of the cavern ceiling suddenly collapsed 3087 | -10/Subcaves | Learned Materials terminal intel 3201 | -10/Subcaves | Discovered new exit (range 14) 3419 | -10/Subcaves | Disturbed a concealed Subdweller 3529 | -10/Subcaves | Visited 4L-MR0's lab 3548 | -10/Subcaves | Found Arachnoskeleton 3632 | -10/Subcaves | Entered Materials 3632 | -8/Materials | Evolved 4 slots: Propulsion x2, Utility x2 3633 | -8/Materials | Loaded intel: 9 trap records 3634 | -8/Materials | Loaded intel: 12 terminal locations 3635 | -8/Materials | Attached Arachnoskeleton, gained temporary slots: Propulsion x3 3966 | -8/Materials | Core integrity fell below 50% 3973 | -8/Materials | Self-destructed Last Messages --------------- 03959_ Overheating: Energy bleed (-37). 03959_ G-47 Trooper knocked back. 03961_ Power failure, Mak. Power Source shutdown. 03963_ Overheating: Core damaged (-71). 03963_ Critical hit (Burn: +37). 03965_ Overheating: Matter decay (-13). 03965_ Insulated Plating destroyed. 03966_ Overheating: Core damaged (-93). 03967_ Overheating: Matter decay (-10). 03968_ Overheating: System interference. 03968_ Flak Cannon temporarily disabled. 03969_ Overheating: System interference. 03969_ Flak Cannon temporarily disabled. 03970_ Power failure, Mak. Power Source shutdown. 03970_ Overheating: Core damaged (-55). 03972_ Aluminum Leg broken. 03972_ Overheating: Short circuit. 03973_ M-28 Smith repairs G-47 Trooper. Map ----- +----------------------------------------------------+ | | | ?????????????????##############?? | | ######???????????# #?? | | #]]] #???????????# #?? | | #]] #???????????# ## | | #[ * #########???# ?## | | # + #???# ???# | | # # #???##+####+####### | | # # ##### | | # + % | | ######+###########/ ############/ | | ??# # #????#= ## # % | | ??# """ # #???##*=## # | | ??# """ + ##### # ! # | | ??# """ # # # | | ??# # + # | | ??# # ##### # # | | ########## #???###### # | | # m #????????# # | | # """ g# #????????# # | | #] """ # +????????#/####+##### | | # """ ## #????????# #????????? | | # """ ## #????????# #????????? | | # """ ## #????????# #????????? | | # ## #????????? ?????????? | | # @## #????????? ?????????? | | # =%+= #????????? ?????????? | | ########### #????????? ?????????? | | ###???????# #????????? ?????????? | | ??????????# #????????? ?????????? | | ?????????? ????????? ?????????? | | ??""??????![ ???????????????????? | | ??"T??????!%=???????????????????? | | ??""?????? ] ???????????????????? | | ????????? ??????????????????? | | ?????????## ##??????????????????? | | ??????????? ????????????????????? | | ??????????? ????????????????????? | | ??????????? ????????????????????? | | ??????????? ????????????????????? | | ??????????? ????????????????????? | | ??????????? ????????????????????? | | ??????????? ????????????????????? | | ????????????????????????????????? | | ????????????????????????????????? | | ????????????????????????????????? | | ????????????????????????????????? | | ????????????????????????????????? | | ????????????????????????????????? | | ????????????????????????????????? | +----------------------------------------------------+ Best States ------------- Heat Dissipation 31 Energy Generation 15 Energy Capacity 250 Matter Stores 300 Matter Capacity 300 Sight Range 16 Terrain Scan Density 10 Armor Coverage 800 Resistance: EM 15 Evasion (%) 55 Recoil Reduction 2 Item Schematics ----------------- None Robot Schematics ------------------ None Fabricated ------------ Nothing Alien Tech Used ----------------- None Achievements -------------- None Challenges ------------ None Game ------ Seed SuperdenseTowerTriangulator Manual? 0 Play Time 00:25:42 Cumulative 139.2 hours Start 2024.11.23 @ 12:50:34 End 2024.11.23 @ 13:26:19 Sessions 1 Manual Loads 0 Difficulty Rogue Special Mode None Game No. 115 Rogue 96 Adventurer 16 Explorer 3 Win Type - Total 10 Types 8/0/1/1/0/0/0/0/0 Lore% 29 Gallery% 66 Achievement% 58 Wizard Run 0 Options --------- Layout 2 ASCII 0 Keyboard 0 Movement Numpad Keybinds 1 Fullscreen 1 Font 24/Terminus Map View 50x44 Zoom Use 0% Tactical HUD 1 Map Filters NONE Filters NONE Steam 1 RUN: cc9f8009-3d33-41b2-a21c-af479d4d6559